Cogmind - Beta 16.1 @@@ ROGUE MODE // 2026.04.06 @ 15:48:53 Player: mephiles96 Result: Destroyed by L-31 Rogue with Katana Performance ------------- Evolutions (1) 500 Regions Visited (4) 800 Robots Destroyed (56) 280 Value Destroyed (913) 913 Prototype IDs (2) 40 Alien Tech Used (0) 0 Bonus (0) 0 TOTAL SCORE: 2533 Bonus ------- None Cogmind --------- Core Integrity 0/400 Matter 290/300 Energy 21/100 System Corruption 4% Temperature Cool (0) Movement Flying (120) Ox1 Location -9/Mines Parts ------- > --- POWER (1) -------- (None) > --- PROPULSION (2) --- Flight Unit > --- UTILITY (4) ------ Small Storage Unit ECM Suite > --- WEAPON (2) ------- (None) > --- INVENTORY (8) ---- Flight Unit Flight Unit Flight Unit Flight Unit Improved Light Cannon Peak State ------------ > --- POWER ------------ Ion Engine > --- PROPULSION ------- Light Treads Light Treads > --- UTILITY ---------- Small Storage Unit Improved Terrain Scanner Seismic Detector Power Shielding > --- WEAPON ----------- Medium Laser Grenade Launcher > --- INVENTORY -------- Compact Wheel Medium Matter Pod ECM Suite Assault Rifle Light Assault Rifle Mining Claw [Rating: 11] Favorites ----------- Power Ion Engine Engine Ion Engine Propulsion Light Treads Treads Light Treads Wheel Compact Wheel Flight Unit Flight Unit Utility Small Storage Unit Device Seismic Detector Storage Small Storage Unit Protection Power Shielding Weapon Assault Rifle Energy Gun Medium Laser Ballistic Gun Assault Rifle Launcher Grenade Launcher Impact Weapon Hammer Slashing Weapon Mining Claw Build | -11 -10 -10 -9 -9 ------- Run | Yrd Mat Min Mat Min Slots Evolved 2 | . . . 2 . Power . | . . . . . Propulsion . | . . . . . Utility 2 | . . . 2 . Weapon . | . . . . . Parts Attached 24 | 9 2 . 5 8 Power 3 | 2 . . . 1 Engine 3 | 2 . . . 1 Core . | . . . . . Reactor . | . . . . . Propulsion 6 | 2 . . 1 3 Treads 4 | 2 . . 1 1 Leg . | . . . . . Wheel 1 | . . . . 1 Hover . | . . . . . Flight 1 | . . . . 1 Utility 8 | 3 . . 2 3 Device 5 | 2 . . . 3 Storage 1 | 1 . . . . Processor . | . . . . . Hackware . | . . . . . Protection 2 | . . . 2 . Artifact . | . . . . . Weapon 7 | 2 2 . 2 1 Energy Gun 1 | 1 . . . . Energy Cannon . | . . . . . Ballistic Gun 2 | 1 1 . . . Ballistic Cannon . | . . . . . Launcher 2 | . 1 . 1 . Special Weapon . | . . . . . Impact Weapon 1 | . . . . 1 Slashing Weapon 1 | . . . 1 . Piercing Weapon . | . . . . . Special Melee Weapon . | . . . . . Unidentified Prototypes . | . . . . . Parts Lost 15 | . . . 4 11 Power 2 | . . . . 2 Propulsion 5 | . . . 2 3 Utility 4 | . . . 1 3 Weapon 4 | . . . 1 3 Highest Loss Streak 6 | . . . 4 6 To Critical Strikes . | . . . . . Average Backups 7 | 5 7 8 7 7 Power . | . . . . . Propulsion 2 | 3 1 1 1 4 Utility 2 | . 3 4 2 . Weapon 2 | 1 2 3 3 2 Tool/Special . | . . . . . Unused Backups 13 | . 4 1 1 7 Power . | . . . . . Propulsion 7 | . 3 . . 4 Utility 2 | . 1 . . 1 Weapon 4 | . . 1 1 2 Tool/Special . | . . . . . Average Slot Usage (%) 93 | . 100 100 89 78 Engine 12 | . 14 14 11 9 Treads 22 | . 28 28 14 15 Device 16 | . 14 14 13 24 Storage 12 | . 14 14 11 11 Protection 3 | . . . 18 1 Energy Gun 5 | . 1 11 2 . Ballistic Gun 14 | . 25 12 15 5 Launcher 2 | . . 4 4 . Impact Weapon 1 | . . . . 8 Peak Build Rating 11 | 9 8 8 11 9 Average Rating 7 | 6 7 8 8 7 On Entrance 6 | . 8 8 8 8 Avg Prop Armor Cover (%) 15 | . . . . 15 Naked Turns . | . . . . . Heaviest Build 19 | 15 15 16 19 18 Greatest Support 40 | 40 40 40 40 40 Greatest Overweight (x) 2 | . . . . 2 Average Overweight (x) . | . . . . . Largest Inventory Capacity 8 | 8 8 8 8 8 Average Capacity 7 | 7 8 8 8 8 Most Carried 8 | 8 8 8 8 8 Average Carried 7 | 5 7 8 7 7 Final Capacity 8 | 8 8 8 8 8 Final Carried 8 | 8 8 8 8 5 Class Distribution -------------------- 82% | Mutant 17% | Scavenger-Mutant Dominant Class ---------------- Mutant | -10/Materials Mutant | -10/Mines Mutant | -9/Materials Scavenger-Mutant | -9/Mines Resources | -11 -10 -10 -9 -9 ----------- Run | Yrd Mat Min Mat Min Matter Collected 1080 | 317 91 207 121 344 Remotely . | . . . . . Salvage Created 898 | 121 104 193 171 309 Parts 91 | 9 7 25 24 26 Haulers Intercepted . | . . . . . Recyclers Shooed 1 | . . 1 . . Parts Field Recycled . | . . . . . Retrieved Matter . | . . . . . Parts Self-Destructed . | . . . . . Prevented . | . . . . . Parts Restored . | . . . . . Kills | -11 -10 -10 -9 -9 ------- Run | Yrd Mat Min Mat Min Combat Hostiles Destroyed 45 | . 8 11 14 12 Melee 3 | . . . . 3 Guns 7 | . 2 1 2 2 AOE 35 | . 6 10 12 7 Classes Destroyed 8 | 2 2 . 1 3 Worker 1 | . . . . 1 Tunneler 8 | 3 . 3 . 2 Recycler 2 | 1 . 1 . . Swarmer 33 | . 6 9 12 6 Grunt 7 | . 2 2 . 3 Brawler 1 | . . . . 1 Duelist 2 | . . . . 2 Sentry 2 | . . . 2 . Best Kill Streak 8 | 2 3 5 8 6 Combat Bots Only 8 | . 3 3 8 4 Max Kills in Single Turn 5 | 1 2 4 3 5 Gunslinging . | . . . . . Exploded 4 | . 2 3 3 4 Melee 1 | . . . . 1 Uniques/NPCs Destroyed . | . . . . . Combat | -11 -10 -10 -9 -9 -------- Run | Yrd Mat Min Mat Min Hostile Shots Fired 147 | . 15 26 41 65 Missed 40 | . 5 5 15 15 Hits 107 | . 10 21 26 50 Melee 21 | . . . . 21 Projectile 86 | . 10 21 26 29 Critical Strikes 7 | . . 1 2 4 Actively Blocked 1 | . . . 1 . Damage Taken 1828 | . 132 218 420 1058 Core 473 | . 21 23 134 295 Absorbed by Shields . | . . . . . Redirected to Shielding 5 | . . . 5 . Core Remaining (%) 91 | 100 . 82 . . Volleys Fired 107 | 9 15 42 24 17 Largest 2 | 2 2 2 2 2 Hottest 70 | 70 40 50 70 40 Shots Fired 138 | 14 25 47 31 21 Gun 107 | 14 20 33 24 16 Cannon . | . . . . . Launcher 31 | . 5 14 7 5 Special . | . . . . . Kinetic 76 | 9 20 10 21 16 Thermal 31 | 5 . 23 3 . Explosive 31 | . 5 14 7 5 Electromagnetic . | . . . . . Robot Hit Streak 10 | 4 9 10 7 7 Robot Miss Streak 7 | 1 6 7 3 1 Penetration Max . | . . . . . Secondary Targets 1 | . . . 1 . Max Gunslinging Chain 1 | . . . 1 . Shots Hit Robots 87 | 11 12 17 21 26 Core Hits 75 | 5 12 18 19 21 Critical Kills . | . . . . . Critical Parts Destroyed 2 | . 1 . 1 . Critical Strikes 2 | . 1 . 1 . Destroy 2 | . 1 . 1 . Melee Attacks 16 | . . . . 16 Impact 16 | . . . . 16 Slashing . | . . . . . Piercing . | . . . . . Sneak Attacks 1 | . . . . 1 Combat Hostiles . | . . . . . Follow-up Attacks . | . . . . . Damage Inflicted 3146 | 140 506 843 775 882 Guns 820 | 140 128 165 208 179 Cannons . | . . . . . Explosions 2066 | . 378 678 567 443 Melee 260 | . . . . 260 Ramming . | . . . . . Kinetic 642 | 102 128 50 183 179 Thermal 178 | 38 . 115 25 . Explosive 2066 | . 378 678 567 443 Electromagnetic . | . . . . . Impact 260 | . . . . 260 Slashing . | . . . . . Piercing . | . . . . . Highest Corruption 4 | . . . . 4 Average Corruption 3 | . . . . 3 Corruption Purged . | . . . . . Corruption Blocked . | . . . . . Effects 11 | . . . . 11 Message Errors 4 | . . . . 4 Matter Fused 1 | . . . . 1 Heat Flow Errors 1 | . . . . 1 Energy Discharges 4 | . . . . 4 Data Loss (minor) 1 | . . . . 1 Overload Shots . | . . . . . Overflow Damage 90 | . 48 36 3 3 Projectiles . | . . . . . Explosions 87 | . 48 36 3 . Melee 3 | . . . . 3 Knockbacks . | . . . . . Impact . | . . . . . Kinetic . | . . . . . Secondary . | . . . . . Self-Inflicted Damage 255 | . 28 39 82 106 Shots 10 | . 1 2 3 4 Rammed . | . . . . . Targets Rammed . | . . . . . Kicked . | . . . . . Crushed . | . . . . . Highest Temperature 81 | 18 12 70 24 81 Average Temperature 18 | 7 9 22 8 27 Received Heat Transfer 267 | . 30 45 114 78 Siege Activations . | . . . . . Martial Activations . | . . . . . Shielding Activations . | . . . . . Robots Disrupted . | . . . . . Combat Hostiles . | . . . . . Robots Corrupted . | . . . . . Combat Hostiles . | . . . . . Parts Fried . | . . . . . Impact Corruptions 1 | . . . . 1 Robots Melted . | . . . . . Combat Hostiles . | . . . . . Parts Melted . | . . . . . Heat Transferred 518 | 111 . 333 74 . Parts Sabotaged . | . . . . . Parts Stolen . | . . . . . Parts Stripped . | . . . . . Power Chain Reactions . | . . . . . Alert | -11 -10 -10 -9 -9 ------- Run | Yrd Mat Min Mat Min Maximum Alert Level 1 | . . . 1 1 Low Security (%) 89 | 100 100 100 55 83 Level 1 10 | . . . 44 16 Level 2 . | . . . . . Level 3 . | . . . . . Level 4 . | . . . . . Level 5 . | . . . . . High Security . | . . . . . Max Security . | . . . . . Peak Influence 296 | 10 154 198 296 232 Initial 81 | . . 20 50 81 Average 94 | . 85 65 154 147 Influence Increases 1384 | 20 255 374 399 336 Destroy 0b10 Robot/C 900 | . 160 220 280 240 Destroy 0b10 Robot/NC 55 | 20 . 20 . 15 Destroy Leader 160 | . 30 40 50 40 Successful Hack 35 | . 22 . 13 . Disable Machine 45 | . . 30 15 . Destroy Structure 159 | . 28 64 26 41 Lose Combat Pursuer 30 | . 15 . 15 . Influence Decreases 1315 | 20 202 297 319 477 Entered New Map 242 | . . 33 80 129 Time Decay 930 | 20 202 264 206 238 Lost Part 143 | . . . 33 110 Squads Dispatched 3 | . 1 . 2 . Investigation 1 | . 1 . . . Extermination . | . . . . . Reinforcement 2 | . . . 2 . Assault . | . . . . . Garrison . | . . . . . Intercept . | . . . . . Searches Triggered . | . . . . . Construction Impeded . | . . . . . Haulers Reinforced . | . . . . . Active Scanning Responses . | . . . . . Cargo Convoy Interrupts . | . . . . . Stealth | -11 -10 -10 -9 -9 --------- Run | Yrd Mat Min Mat Min Distress Signals . | . . . . . Communications Jammed . | . . . . . Distress Signals . | . . . . . Times Spotted 64 | . 13 10 18 23 Peak Tracking Total 5 | . 4 3 5 5 Tactical Retreats 7 | . 1 . 1 5 ECM-based Alert Blocks 9 | . . . . 9 Traps | -11 -10 -10 -9 -9 ------- Run | Yrd Mat Min Mat Min Traps Triggered . | . . . . . Indirectly . | . . . . . Trap Hack Attempts . | . . . . . Triggered . | . . . . . Disarmed . | . . . . . Reprogrammed . | . . . . . Reused . | . . . . . Traps Extracted . | . . . . . Installed . | . . . . . Triggered . | . . . . . Machines | -11 -10 -10 -9 -9 ---------- Run | Yrd Mat Min Mat Min Machines Disabled 3 | . . 2 1 . Max in Single Turn 1 | . . 1 1 . Machines Repaired . | . . . . . Machines Dismantled . | . . . . . Machines Sabotaged . | . . . . . Overloaded Fab Kills . | . . . . . Hacking | -11 -10 -10 -9 -9 --------- Run | Yrd Mat Min Mat Min Machines Accessed 4 | . 2 . 1 1 Terminals 4 | . 2 . 1 1 Fabricators . | . . . . . Repair Stations . | . . . . . Recycling Units . | . . . . . Scanalyzers . | . . . . . Garrison Access . | . . . . . Total Hacks 23 | . 15 . 6 2 Successful 10 | . 6 . 4 . Failed 12 | . 8 . 2 2 Catastrophic . | . . . . . Database Lockouts 1 | . 1 . . . Manual 23 | . 14 . 7 2 Terminals 23 | . 15 . 6 2 Fabricators . | . . . . . Repair Stations . | . . . . . Recycling Units . | . . . . . Scanalyzers . | . . . . . Garrison Access . | . . . . . Terminal Hacks 6 | . 4 . 2 . Part Schematic 1 | . 1 . . . Prototype ID Bank 1 | . 1 . . . Branch Access Points 2 | . 1 . 1 . Terminal Index 2 | . 1 . 1 . Fabricator Hacks . | . . . . . Repair Station Hacks . | . . . . . Recycling Unit Hacks . | . . . . . Scanalyzer . | . . . . . Garrison Access Hacks . | . . . . . Unauthorized Hacks 4 | . 2 . 2 . Terminals 4 | . 2 . 2 . Track 3 | . 2 . 1 . Botnet 1 | . . . 1 . Fabricators . | . . . . . Repair Stations . | . . . . . Recycling Units . | . . . . . Scanalyzers . | . . . . . Garrison Access . | . . . . . Data Cores Recovered . | . . . . . Used . | . . . . . Hacking Detections 4 | . 2 . 1 1 Full Trace Events 1 | . 1 . . . Feedback Events . | . . . . . Feedback Blocked . | . . . . . Robot Schematics Acquired . | . . . . . Robots Built . | . . . . . Authchips . | . . . . . Time . | . . . . . Total Robot Build Rating . | . . . . . Part Schematics Acquired 1 | . 1 . . . Parts Built . | . . . . . Authchips . | . . . . . Time . | . . . . . Total Part Build Rating . | . . . . . Part Studies Acquired . | . . . . . Parts Repaired . | . . . . . Time . | . . . . . Parts Recycled . | . . . . . Recycled Matter . | . . . . . Retrieved Matter . | . . . . . Retrieved Components . | . . . . . Parts Scanalyzed . | . . . . . Part Schematics Acquired . | . . . . . Parts Damaged . | . . . . . Bothacking | -11 -10 -10 -9 -9 ------------ Run | Yrd Mat Min Mat Min Used RIF Installer . | . . . . . Robots Hacked . | . . . . . Non-combat . | . . . . . Combat . | . . . . . Robot Hacks Applied . | . . . . . Relay Couplers Released . | . . . . . Fabnet Peak Effective % . | . . . . . Robots Rewired . | . . . . . Allies Hacked . | . . . . . Hacks Repelled . | . . . . . Allies | -11 -10 -10 -9 -9 -------- Run | Yrd Mat Min Mat Min Total Allies . | . . . . . Largest Group . | . . . . . Highest-Rated Group . | . . . . . Highest-Rated Ally . | . . . . . Total Orders . | . . . . . Ally Attacks . | . . . . . Total Damage . | . . . . . Kills . | . . . . . Allies Corrupted . | . . . . . Allies Melted . | . . . . . Intel | -11 -10 -10 -9 -9 ------- Run | Yrd Mat Min Mat Min Active Infowar (turns) 2452 | 109 460 991 435 457 Terrain 176 | 74 . . 102 . Seismic 2365 | 35 460 991 435 444 ECM 335 | . . . . 335 Robot Analysis Total . | . . . . . Derelict Logs Recovered 3 | . . 2 . 1 Drone Launches . | . . . . . Drone Recoveries . | . . . . . Exploration | -11 -10 -10 -9 -9 ------------- Run | Yrd Mat Min Mat Min Turns Passed 2620 | 222 460 991 435 512 Spaces Moved 1373 | 116 243 558 209 247 Core 14 | 5 . . . 9 Treads 1342 | 111 243 558 209 221 Legs . | . . . . . Wheels 17 | . . . . 17 Hover . | . . . . . Flight . | . . . . . Fastest Speed 50 | 50 160 160 160 100 Average Speed 158 | 155 160 160 160 155 Slowest Speed 160 | 160 160 160 160 160 Overloaded Moves . | . . . . . Propulsion Burnouts . | . . . . . Robots Hopped . | . . . . . Potential Cave-ins . | . . . . . Cave-ins Triggered . | . . . . . Exploration Rate (%) 38 | 6 36 95 17 38 Regions Visited 4 Branch Regions 2 Pre-discovered Areas . | . . . . . Known Exits Taken 2 | . 1 . 1 . Unknown Exits Taken 2 | 1 . 1 . . Scrap Searched 2 | . . 1 . 1 Spaces Dug . | . . . . . Terrain Destroyed 184 | . 26 85 24 49 Melee . | . . . . . Projectile . | . . . . . AOE 184 | . 26 85 24 49 Terrain Rammed . | . . . . . Walls Destroyed . | . . . . . Machines Disabled . | . . . . . Actions | -11 -10 -10 -9 -9 --------- Run | Yrd Mat Min Mat Min Total 1642 | 140 292 608 279 323 Wait 71 | . 20 2 28 21 Move 1369 | 115 242 557 208 247 Hop . | . . . . . Pick Up 23 | 7 5 1 5 5 Fast Attach 14 | 7 . . 2 5 Attach 8 | . . . 3 5 Detach . | . . . . . Swap 22 | 2 5 5 6 4 Drop 12 | . 5 1 3 3 Fire 107 | 9 15 42 24 17 Melee 16 | . . . . 16 Ram . | . . . . . Kick . | . . . . . Crush . | . . . . . Escape Stasis . | . . . . . Rewire . | . . . . . Trap . | . . . . . Miscellaneous . | . . . . . Route ------- -11/Scrapyard -10/Materials (discovered 2 exits: *Mat / *Min) -10/Mines (discovered 2 exits: *Mat x2) -9/Materials -9/Mines (discovered 1 exit: [*Mat]) History --------- Turn | Location | Event 43 | -11/Scrapyard | Discovered new exit (range 16) 223 | -11/Scrapyard | Entered Materials 312 | -10/Materials | Build established: Mutant 498 | -10/Materials | Discovered new exit (range 16) 630 | -10/Materials | Identified exit to Mines 630 | -10/Materials | Central database locked down 683 | -10/Materials | Entered Mines 961 | -10/Mines | Discovered new exit (range 4) 1381 | -10/Mines | Learned Materials stockpile data 1459 | -10/Mines | Discovered new exit (range 8) 1674 | -10/Mines | Entered Materials 1674 | -9/Materials | Evolved 2 slots: Utility x2 1703 | -9/Materials | Identified exit to Mines 1836 | -9/Materials | Lost 4 parts (2n1u1w) 1941 | -9/Materials | Destroyed 8 combat bots 2109 | -9/Materials | Entered Mines 2436 | -9/Mines | Build established: Scavenger-Mutant 2460 | -9/Mines | Discovered new exit (range 14) 2587 | -9/Mines | Core integrity fell below 50% 2602 | -9/Mines | Core integrity fell below 20% 2621 | -9/Mines | Destroyed by L-31 Rogue with Katana Last Messages --------------- 02423_ Connecting with Terminal... 02460_ EXIT=FOUND 02469_ Acquired derelict log, extracted data. Data stored: Factory entrances (x1). 02499_ System corrupted: Heat flow error (+114). 02528_ NPOZB>1,1V2PCL4I,FDT,JAHSYF87LNRRT FKE 02568_ Ion Engine destroyed. 02581_ K-01 Serf destroyed. 02582_ System corrupted: Matter fused (-10). 02583_ Acquired 17 matter. 02584_ Extracted 43 matter. 02587_ Extracted 3 matter. 02589_ Com. Wheel destroyed. 02591_ Extracted 3 matter. 02594_ Lgt. Treads destroyed. 02594_ Heat Sink destroyed. 02596_ Assault Rifle destroyed. 02599_ Seismic Detector severed. 02602_ L-31 Rogue destroyed. 02603_ Hammer destroyed. Map ----- +----------------------------------------------------+ | ?????### ##??????????????????????????????????????# | | ??????##=##??????????????????????????????????????# | | ??????## ##?????????????????????????????????????## | | ??????##[#??????????????????????????????????????# | | ???????# #??????????????????????????????????????# | | ???????# #??????????????????????????????????????# | | ???????# #??????????????????????????????????????# | | ??????# #???????????????????????????????????????# | | ?????# #???????????????????????????????????????# | | ????# #???? #?????????????????????????????????# | | # #???# ###?? #?????????????????????????????????# | | # #### ### #???????????????????????#####?????? | | ?# ##?????????????????????## ###???? | | ?## ##????????????????????# ##??? | | ??### #????????????????????# #??# | | ????## #????????????????????# #### | | ?????## ##????????????????????# ## | | ??????# ##?????????????????????# ## | | ?????## ##????????????########### ## #### | | ?????# #?????????????#=!!= ## #### | | ?????## ###??########???#%############ | | ??????### ##????# #???# #??????????# | | ????????# ##????# ##??# #??????????####### | | ????????# ###### """ T#??# #????????????????### | | ????????### # # """ ##### #??????????????????? | | ??????????# k """ s@lgg #??????????????????? | | ??????????### g #######??????????????????? | | ????????????#############????????????????????????? | | ?????????????????????????????????????????????????? | | ?????????????????????????????????????????????????? | | | | | | | | | | | | | | | | | | | | | | | | | | | | | | | | | | | | | | | | | +----------------------------------------------------+ Best States ------------- Heat Dissipation 38 Energy Generation 10 Energy Capacity 250 Matter Stores 300 Matter Capacity 300 Sight Range 16 Terrain Scan Range 16 Terrain Scan Density 10 ECM Strength 1 Armor Coverage 150 Power Shielding 33 Evasion (%) 40 Recoil Reduction 2 Item Schematics ----------------- Mining Claw | -10/Materials | Hacked Robot Schematics ------------------ None Fabricated ------------ Nothing Repaired ---------- Nothing Studied --------- None Alien Tech Used ----------------- None Achievements -------------- None Challenges ------------ None Game ------ Seed AlertCoolingDriver Manual? 0 Play Time 00:21:17 Cumulative 44.4 hours Start 2026.04.06 @ 15:28:33 End 2026.04.06 @ 15:48:53 Sessions 1 Manual Loads 0 Difficulty Rogue Special Mode None Game No. 55 Rogue 55 Adventurer 0 Explorer 0 Win Type - Total 0 Types 0/0/0/0/0/0/0/0/0/0 Lore% 16 Gallery% 32 Achievement% 25 Wizard Run 0 Options --------- Layout 2 ASCII 0 Keyboard 0 Movement Numpad Keybinds 1 Fullscreen 1 Font 24/Smallcaps Map View 50x44 Zoom Use 0% Tactical HUD 1 Map Filters NONE Filters NONE Steam 1 RUN: e8492cd1-872e-4d51-835a-1f9129c867f1